Workbook

Sheet WC Single Year Blank Template
A1: TABLE - WOODLAND CREATION COMPONENT AREAS | S1: Woodland Creation Option
A2: This table is to be completed by the Applicant at the Application and Claim Stage. A separate Component Areas table is required for each Land Parcel / woodland block. Guidance for completing this table, and an example, can be found on the other worksheets listed (see the tabs at the bottom of the workbook). | S2: Conifer
A3: BRN: | E3: Location Code: | S3: Diverse Conifer
S4: Broadleaves
A5: Application Name: | E5: Land Parcel Identifier (LPID) OR Individual Woodland Name: | S5: Native Scots Pine
S6: Native Upland Birch
B7: 1 | D7: 2 | E7: 3 | F7: 4 | G7: 5 | H7: 6 | I7: 7 | J7: 8 | S7: Native Broadleaves
B8: Woodland Creation Option | D8: Map identifier(s) | E8: Claim Year | F8: Planted Species | G8: Stocking density (stems/ha) | H8: Component Area (ha) | I8: Total (ha) | J8: % Component | S8: Native Low-density Broadleaves
B9: Woodland Creation Option | J9: =H9/I16 ->  | S9: Small or Farm Woodland
J10: =H10/I16 ->  | S10: Native Broadleaves in Northern and Western Isles
J11: =H11/I16 -> 
J12: =H12/I16 -> 
J13: =H13/I16 -> 
J14: =H14/I16 -> 
B15: Designed Open Ground | F15: DOG | J15: =H15/I16 -> 
B16: Total For Option | I16: =SUM(H9:H16) -> 0 | J16: 1
B17: Woodland Creation Option | J17: =H17/I24 -> 
J18: =H18/I24 -> 
J19: =H19/I24 -> 
J20: =H20/I24 -> 
J21: =H21/I24 -> 
J22: =H22/I24 -> 
B23: Designed Open Ground | F23: DOG | J23: =H23/I24 -> 
B24: Total For Option | I24: =SUM(H17:H24) -> 0 | J24: 1
B25: Woodland Creation Option | J25: =H25/I32 -> 
J26: =H26/I32 -> 
J27: =H27/I32 -> 
J28: =H28/I32 -> 
J29: =H29/I32 -> 
J30: =H30/I32 -> 
B31: Designed Open Ground | F31: DOG | J31: =H31/I32 -> 
B32: Total For Option | I32: =SUM(H25:H31) -> 0 | J32: 1
A33: A | B33: Total Area (all Options combined) | I33: =SUM(I32,I24,I16) -> 0
A34: B | B34: Other Land (if any) – Unplantable areas | F34: OL
A35: C | B35: Other Land (if any) – designed open areas > grant aidable % | F35: DOG
A36: D | B36: Total area within Woodland Creation Perimeter Boundary | I36: =SUM(I33:I35) -> 0

Sheet WC Multiple Year Blank Template
A1: TABLE - WOODLAND CREATION COMPONENT AREAS | S1: Woodland Creation Option
A2: This table is to be completed by the Applicant at the Application and Claim Stage. A separate Component Areas table is required for each Land Parcel / woodland block. Guidance for completing this table, and an example, can be found on the other worksheets listed (see the tabs at the bottom of the workbook). | S2: Conifer
A3: BRN: | E3: Location Code: | S3: Diverse Conifer
S4: Broadleaves
A5: Application Name: | E5: Land Parcel Identifier (LPID) OR Individual Woodland Name: | S5: Native Scots Pine
S6: Native Upland Birch
B7: 1 | D7: 2 | E7: 3 | F7: 4 | G7: 5 | H7: 6 | I7: 7 | J7: 8 | S7: Native Broadleaves
B8: Woodland Creation Option | D8: Map identifier(s) | E8: Claim Year | F8: Planted Species | G8: Stocking density (stems/ha) | H8: Component Area (ha) | I8: Total (ha) | J8: % Component | S8: Native Low-density Broadleaves
B9: Woodland Creation Option | J9: =H9/I23 ->  | S9: Small or Farm Woodland
J10: =H10/I23 ->  | S10: Native Broadleaves in Northern and Western Isles
J11: =H11/I23 -> 
J12: =H12/I23 -> 
J13: =H13/I23 -> 
B14: Designed Open Ground | F14: DOG | J14: =H14/I23 -> 
B15: Total For Cpt | I15: =SUM(H9:H15) -> 0
B16: Woodland Creation Option | J16: =H16/I23 -> 
B17: 2nd claim year | J17: =H17/I23 -> 
B18: 2nd claim year | J18: =H18/I23 -> 
B19: 2nd claim year | J19: =H19/I23 -> 
B20: 2nd claim year | J20: =H20/I23 -> 
B21: Designed Open Ground | F21: DOG | J21: =H21/I23 -> 
B22: Total For Cpt | I22: =SUM(H16:H21) -> 0
B23: Total For Option | I23: =SUM(I15+I22) -> 0 | J23: 1
B24: Woodland Creation Option | J24: =H24/I36 -> 
J25: =H25/I36 -> 
J26: =H26/I36 -> 
J27: =H27/I36 -> 
B28: Designed Open Ground | F28: DOG | J28: =H28/I36 -> 
B29: Total For Cpt | I29: =SUM(H24:H29) -> 0
B30: Woodland Creation Option | J30: =H30/I36 -> 
B31: 2nd claim year | J31: =H31/I36 -> 
B32: 2nd claim year | J32: =H32/I36 -> 
B33: 2nd claim year | J33: =H33/I36 -> 
B34: Designed Open Ground | F34: DOG | J34: =H34/I36 -> 
B35: Total For Cpt | I35: =SUM(H30:H35) -> 0
B36: Total For Option | I36: =SUM(I29+I35) -> 0 | J36: 1
B37: Woodland Creation Option | J37: =H37/I49 -> 
J38: =H38/I49 -> 
J39: =H39/I49 -> 
J40: =H40/I49 -> 
B41: Designed Open Ground | F41: DOG | J41: =H41/I49 -> 
B42: Total For Cpt | I42: =SUM(H37:H42) -> 0
B43: Woodland Creation Option | J43: =H43/I49 -> 
B44: 2nd claim year | J44: =H44/I49 -> 
B45: 2nd claim year | J45: =H45/I49 -> 
B46: 2nd claim year | J46: =H46/I49 -> 
B47: Designed Open Ground | F47: DOG | J47: =H47/I49 -> 
B48: Total For Cpt | I48: =SUM(H43:H48) -> 0
B49: Total For Option | I49: =SUM(I42:I48) -> 0 | J49: 1
A50: A | B50: Total Area (all Options combined) | I50: =SUM(I23,I36,I49) -> 0
A51: B | B51: Other Land (if any) – Unplantable areas | F51: OL
A52: C | B52: Other Land (if any) – designed open areas > grant aidable % | F52: DOG
A53: D | B53: Total area within Woodland Creation Perimeter Boundary | I53: =SUM(I50:I52) -> 0

Sheet Guidance WC Template
A1: Notes on completing Table for WC that will be carried out within a Woodland Block
A3: You must fill in a new table for each different LPID or different woodland block you are planting. If you are planting a block over more than year, you should use the multiple year blank template. We do intend to make this table much more user friendly by adding programming to allow you to enter additional rows and compartments. But for now, a lot of the formatting cannot be locked down. Whilst we develop an intelligent spreadsheet that can be populated within the parameters that our webpages must adhere to, we urge you to use the multiple year table or the single year table as appropriate (or both). if you do have to enter or delete additional rows, please be aware that the formula may well change in the percentage and total cells.
A5: BRN - enter the name of your Business Reference Number
A6: Location Code - enter the name of your Location Code of where the application is set.
A7: Application Name - the name of your application to the Forestry Grant Scheme
A8: Land Parcel identifier or Individual Woodland name - either the Land Parcel identifier (LPID) if you are going to plant up the entire LP or the name of the woodland block if you are in the process of requesting a new LPID because you are planning to plant up part of the current LPID or your proposed planting is taking place over more than one LPID.
A10: Column 1 – Insert the Woodland Creation Option being delivered. If your Option is to be delivered over two or more claim years, please itemise the species to be planted in each of the years and provide a sub total for each year and a total for all the years for the Option.
A11: Column 2 – Insert the appropriate map reference to ensure each species is identified on the species planting map
A12: Column 3 – Insert the year you will be claiming grant on the capital element of initial planting. That is once all the trees have been planted for that year according to your application/contract.
A13: Column 4 – Insert each of the Species types being planted within the identified area on the species planting map. Use the species as listed in: http://scotland.forestry.gov.uk/images/corporate/pdf/speciesabbreviationsfelling.pdf Also insert the amount of Designed Open Ground, if required.
A14: Column 5 – Insert the minimum stocking density you will plant for the species.
A15: Column 6 – Insert the component area for the species and designed open ground.
A16: Column 7 - Insert the total area for each option (and claim year sub total for options planted over two or more claim years). This total is for the grant aided areas only.
A17: Column 8 – Insert the % breakdown of species/OG by area for each option. The total for option row should add up to 100%
A20: Row A – Insert total area for all woodland creation options. The value in Row A must not exceed the value in Row D, Column 7.
A21: Row B – Insert the total of the Other Land areas that are unplantable. OL can be made up of any unplantable areas of greater than 0.25ha as identified on planting map (eg: scree, small lochs, extensive areas of peat over 50cm deep, etc..). These areas of Other Land must be identified at the planting planning stage and the areas marked out of your proposed area before beginning your landscape design.
A22: Row C – Insert the total of all any additional open ground areas, of greater than 0.25ha each, as identified on your designed planting map (eg: Applications may include higher percentages of Designed Open Ground but in such cases, where this exceeds the maximum allowed under the woodland creation options, these excess unplanted open areas will not be included within the payable grant area and should be classed as excess open ground on the components table)
A23: Row D – Insert the total area contained within the Woodland Creation perimeter boundary. The total in Row C should equate to the permanent WC perimeter boundary area(s) marked on the ground. This is the outermost boundary of each separate woodland creation block. This may be made up of different woodland creation options that, in very large scale applications, might be planted over a couple of planting seasons but importantly, within this boundary you will include all of your Designed Open Ground. This perimeter boundary should be the same boundary as your proposed boundary fences. Other Land that will not be grant aided but is part of the woodland creation layout should also be included in this boundary.

Sheet Example WC Single Year
A1: TABLE - WOODLAND CREATION COMPONENT AREAS | S1: Woodland Creation Option
A2: This table is to be completed by the Applicant at the Application and Claim Stage. A separate Component Areas table is required for each Land Parcel / woodland block. Guidance for completing this table, and an example, can be found on the other worksheets listed (see the tabs at the bottom of the workbook). | S2: Conifer
A3: BRN: | C3: 123456 | E3: Location Code: | G3: 067/6271 | S3: Diverse Conifer
S4: Broadleaves
A5: Application Name: | C5: Leckie Hill Woods | E5: Land Parcel Identifier (LPID) OR Individual Woodland Name: | H5: Cpt 6 Ladny's Field | S5: Native Scots Pine
S6: Native Upland Birch
B7: 1 | D7: 2 | E7: 3 | F7: 4 | G7: 5 | H7: 6 | I7: 7 | J7: 8 | S7: Native Broadleaves
B8: Woodland Creation Option | D8: Map identifier(s) | E8: Claim Year | F8: Planted Species | G8: Stocking density (stems/ha) | H8: Component Area (ha) | I8: Total (ha) | J8: % Component | S8: Native Low-density Broadleaves
B9: Conifer | D9: Cpt 6 | E9: 2016 | F9: SS | G9: 2500 | H9: 3.63 | J9: =H9/I16 -> 0.7145669291 | S9: Small or Farm Woodland
D10: Cpt 6 | E10: 2016 | F10: EL | G10: 2500 | H10: 0.7 | J10: =H10/I16 -> 0.1377952756 | S10: Native Broadleaves in Northern and Western Isles
D11: Cpt 6 | E11: 2016 | F11: AR | G11: 1100 | H11: 0.25 | J11: =H11/I16 -> 0.04921259843
J12: =H12/I16 -> 0
J13: =H13/I16 -> 0
J14: =H14/I16 -> 0
B15: Designed Open Ground | D15: Cpt 6 | E15: 2016 | F15: DOG | H15: 0.5 | J15: =H15/I16 -> 0.09842519685
B16: Total For Option | I16: =SUM(H9:H16) -> 5.08 | J16: 1
B17: Woodland Creation Option | J17: =H17/I24 -> 
J18: =H18/I24 -> 
J19: =H19/I24 -> 
J20: =H20/I24 -> 
J21: =H21/I24 -> 
J22: =H22/I24 -> 
B23: Designed Open Ground | F23: DOG | J23: =H23/I24 -> 
B24: Total For Option | I24: =SUM(H17:H24) -> 0 | J24: 1
B25: Woodland Creation Option | J25: =H25/I32 -> 
J26: =H26/I32 -> 
J27: =H27/I32 -> 
J28: =H28/I32 -> 
J29: =H29/I32 -> 
J30: =H30/I32 -> 
B31: Designed Open Ground | F31: DOG | J31: =H31/I32 -> 
B32: Total For Option | I32: =SUM(H25:H31) -> 0 | J32: 1
A33: A | B33: Total Area (all Options combined) | I33: =SUM(I32,I24,I16) -> 5.08
A34: B | B34: Other Land (if any) – Unplantable areas | F34: OL
A35: C | B35: Other Land (if any) – designed open areas > grant aidable % | F35: DOG | I35: 0.03
A36: D | B36: Total area within Woodland Creation Perimeter Boundary | I36: =SUM(I33:I35) -> 5.11

Sheet Example WC Multiple Year
A1: TABLE - WOODLAND CREATION COMPONENT AREAS | S1: Woodland Creation Option
A2: This table is to be completed by the Applicant at the Application and Claim Stage. A separate Component Areas table is required for each Land Parcel / woodland block. Guidance for completing this table, and an example, can be found on the other worksheets listed (see the tabs at the bottom of the workbook). | S2: Conifer
A3: BRN: | C3: 123456 | E3: Location Code: | G3: 067/6271 | S3: Diverse Conifer
S4: Broadleaves
A5: Application Name: | C5: Leckie Hill Woods | E5: Land Parcel Identifier (LPID) OR Individual Woodland Name: | H5: Leckie Hill Woods Cpts 1-5 NN666036 | S5: Native Scots Pine
S6: Native Upland Birch
B7: 1 | D7: 2 | E7: 3 | F7: 4 | G7: 5 | H7: 6 | I7: 7 | J7: 8 | S7: Native Broadleaves
B8: Woodland Creation Option | D8: Map identifier(s) | E8: Claim Year | F8: Planted Species | G8: Stocking density (stems/ha) | H8: Component Area (ha) | I8: Total (ha) | J8: % Component | S8: Native Low-density Broadleaves
B9: Conifer | D9: Cpt 1 | E9: 2016 | F9: SS | G9: 2500 | H9: 4.78 | J9: =H9/I23 -> 0.3054313099 | S9: Small or Farm Woodland
D10: Cpt 1 | E10: 2016 | F10: EL | G10: 2500 | H10: 0.66 | J10: =H10/I23 -> 0.04217252396 | S10: Native Broadleaves in Northern and Western Isles
D11: Cpt 1 | E11: 2016 | F11: WSH | G11: 1100 | H11: 0.2 | J11: =H11/I23 -> 0.01277955272
D12: Cpt 1 | E12: 2016 | F12: Bi | G12: 1100 | H12: 1.36 | J12: =H12/I23 -> 0.08690095847
J13: =H13/I23 -> 0
B14: Designed Open Ground | D14: Cpt1 | E14: 2016 | F14: DOG | H14: 0.59 | J14: =H14/I23 -> 0.03769968051
B15: Total For Cpt | I15: =SUM(H9:H15) -> 7.59
B16: Conifer | D16: Cpt 2 | E16: 2017 | F16: SS | G16: 2500 | H16: 6.68 | J16: =H16/I23 -> 0.4268370607
B17: 2nd claim year | D17: Cpt 2 | E17: 2017 | F17: EL | G17: 2500 | H17: 1.38 | J17: =H17/I23 -> 0.08817891374
B18: 2nd claim year | J18: =H18/I23 -> 0
B19: 2nd claim year | J19: =H19/I23 -> 0
B20: 2nd claim year | J20: =H20/I23 -> 0
B21: Designed Open Ground | D21: Cpt 3 | E21: 2017 | F21: DOG | H21: 0 | J21: =H21/I23 -> 0
B22: Total For Cpt | I22: =SUM(H16:H21) -> 8.06
B23: Total For Option | I23: =SUM(I15+I22) -> 15.65 | J23: 1
B24: Diverse Conifer | D24: Cpt 4 | E24: 2016 | F24: DF | G24: 2500 | H24: 1.31 | J24: =H24/I36 -> 0.1603427173
D25: Cpt 4 | E25: 2016 | F25: EL | G25: 2500 | H25: 1.18 | J25: =H25/I36 -> 0.1444308446
D26: Cpt 4 | E26: 2016 | F26: GWL | G26: 1100 | H26: 0.16 | J26: =H26/I36 -> 0.01958384333
J27: =H27/I36 -> 0
B28: Designed Open Ground | D28: Cpt 4 | E28: 2016 | F28: DOG | H28: 0.4 | J28: =H28/I36 -> 0.04895960832
B29: Total For Cpt | I29: =SUM(H24:H29) -> 3.05
B30: Diverse Conifer | D30: Cpt 3 | E30: 2017 | F30: DF | G30: 2500 | H30: 2.59 | J30: =H30/I36 -> 0.3170134639
B31: 2nd claim year | D31: Cpt 3 | E31: 2017 | F31: EL | G31: 2500 | H31: 2.01 | J31: =H31/I36 -> 0.2460220318
B32: 2nd claim year | D32: Cpt 3 | E32: 2017 | F32: GWL | G32: 1100 | H32: 0.11 | J32: =H32/I36 -> 0.01346389229
B33: 2nd claim year | J33: =H33/I36 -> 0
B34: Designed Open Ground | D34: Cpt 3 | E34: 2017 | F34: DOG | H34: 0.41 | J34: =H34/I36 -> 0.05018359853
B35: Total For Cpt | I35: =SUM(H30:H35) -> 5.12
B36: Total For Option | I36: =SUM(I29+I35) -> 8.17 | J36: 1
B37: Native Upland Birch | D37: Cpt 5 | E37: 2016 | F37: BI | G37: 1600 | H37: 1.84 | J37: =H37/I49 -> 0.7104247104
D38: Cpt 5 | E38: 2016 | F38: AR | G38: 1600 | H38: 0.5 | J38: =H38/I49 -> 0.1930501931
J39: =H39/I49 -> 0
J40: =H40/I49 -> 0
B41: Designed Open Ground | D41: Cpt 5 | E41: 2016 | F41: DOG | H41: 0.25 | J41: =H41/I49 -> 0.09652509653
B42: Total For Cpt | I42: =SUM(H37:H42) -> 2.59
B43: Woodland Creation Option | J43: =H43/I49 -> 0
J44: =H44/I49 -> 0
J45: =H45/I49 -> 0
J46: =H46/I49 -> 0
B47: Designed Open Ground | F47: DOG | J47: =H47/I49 -> 0
B48: Total For Cpt | I48: =SUM(H43:H48) -> 0
B49: Total For Option | I49: =SUM(I42:I48) -> 2.59 | J49: 1
A50: A | B50: Total Area (all Options combined) | I50: =SUM(I23,I36,I49) -> 26.41
A51: B | B51: Other Land (if any) – Unplantable areas | F51: OL
A52: C | B52: Other Land (if any) – designed open areas > grant aidable % | F52: DOG
A53: D | B53: Total area within Woodland Creation Perimeter Boundary | I53: =SUM(I50:I52) -> 26.41
